Cogmind - Beta 15 @@@ ROGUE MODE // 2025.05.09 @ 15:58:57 Player: CrossedViper Result: Destroyed by EW-V0M(R) with Subdweller Machine Gun Performance ------------- Evolutions (0) 0 Regions Visited (2) 400 Robots Destroyed (45) 225 Value Destroyed (966) 966 Prototype IDs (11) 220 Alien Tech Used (0) 0 Bonus (0) 0 TOTAL SCORE: 1811 Bonus ------- None Cogmind --------- Core Integrity 0/250 Matter 286/300 Energy 80/100 System Corruption 1% Temperature Cool (0) Movement Treading (160) Location -10/Subcaves Parts ------- > --- POWER (1) -------- (None) > --- PROPULSION (2) --- Light Treads > --- UTILITY (2) ------ (None) > --- WEAPON (2) ------- Subdweller Beam Cannon Subdweller Machine Gun > --- INVENTORY (5) ---- Large Storage Unit High-capacity Storage Unit Seismic Detector Rainbow Chip Peak State ------------ > --- POWER ------------ Ion Engine > --- PROPULSION ------- Light Treads Wheel > --- UTILITY ---------- Large Storage Unit Seismic Detector > --- WEAPON ----------- Subdweller Beam Cannon Subdweller Machine Gun > --- INVENTORY -------- High-capacity Storage Unit Huge Storage Unit Core Shielding Rainbow Chip Salvaging Laser Subdweller Laser Subdweller Machine Gun Subdweller Machine Gun Improved Light Cannon Improved Light Cannon Improved Light Cannon Grenade Launcher Subdweller Shrapnel Launcher Dirty Datajack Plasma Cutter [Rating: 13] Favorites ----------- Power Ion Engine Engine Ion Engine Propulsion Light Treads Treads Light Treads Wheel Wheel Utility Seismic Detector Device Seismic Detector Storage Large Storage Unit Protection Scrap Shield Weapon Improved Light Cannon Energy Cannon Subdweller Beam Cannon Ballistic Gun Subdweller Machine Gun Ballistic Cannon Improved Light Cannon Build | -11 -10 -10 ------- Run | Yrd Mat Sub Slots Evolved . | . . . Power . | . . . Propulsion . | . . . Utility . | . . . Weapon . | . . . Parts Attached 24 | 7 8 9 Power 2 | 1 1 . Engine 2 | 1 1 . Core . | . . . Reactor . | . . . Propulsion 5 | 2 . 3 Treads 4 | 2 . 2 Leg . | . . . Wheel 1 | . . 1 Hover . | . . . Flight . | . . . Utility 6 | 2 2 2 Device 1 | 1 . . Storage 3 | 1 2 . Processor . | . . . Hackware . | . . . Protection 2 | . . 2 Artifact . | . . . Weapon 11 | 2 5 4 Energy Gun . | . . . Energy Cannon 1 | . . 1 Ballistic Gun 6 | 2 1 3 Ballistic Cannon 4 | . 4 . Launcher . | . . . Special Weapon . | . . . Impact Weapon . | . . . Slashing Weapon . | . . . Piercing Weapon . | . . . Special Melee Weapon . | . . . Unidentified Prototypes . | . . . Parts Lost 8 | . 1 7 Power 1 | . . 1 Propulsion 4 | . . 4 Utility 1 | . . 1 Weapon 2 | . 1 1 Highest Loss Streak 4 | . 1 4 To Critical Strikes . | . . . Average Backups 10 | 1 13 8 Power . | . 1 . Propulsion 1 | . 1 . Utility 3 | . 3 3 Weapon 4 | . 5 3 Tool/Special . | . . . Unused Backups 16 | . 1 15 Power 1 | . . 1 Propulsion 1 | . . 1 Utility 3 | . . 3 Weapon 9 | . 1 8 Tool/Special 2 | . . 2 Average Slot Usage (%) 94 | . 99 89 Engine 14 | . 14 14 Treads 22 | . 28 18 Wheel 5 | . . 9 Device 8 | . 14 4 Storage 8 | . 14 5 Protection 5 | . . 9 Energy Cannon 5 | . . 9 Ballistic Gun 11 | . 8 13 Ballistic Cannon 10 | . 19 4 Peak Build Rating 13 | 7 11 13 Average Rating 10 | 5 9 11 On Entrance 6 | . 7 11 Naked Turns . | . . . Heaviest Build 54 | 11 54 38 Greatest Support 40 | 40 40 40 Greatest Overweight (x) 3 | . 1 3 Average Overweight (x) 1 | . . 2 Largest Inventory Capacity 20 | 8 20 15 Average Capacity 11 | 7 16 8 Most Carried 19 | 3 19 15 Average Carried 10 | 1 13 8 Final Capacity 15 | 8 15 5 Final Carried 15 | 3 15 4 Class Distribution -------------------- 62% | Mutant 36% | Subdweller-Mutant Dominant Class ---------------- Mutant | -10/Materials Subdweller-Mutant | -10/Subcaves Resources | -11 -10 -10 ----------- Run | Yrd Mat Sub Matter Collected 1163 | 275 570 318 Remotely . | . . . Salvage Created 1199 | 127 665 407 Parts 94 | 7 59 28 Haulers Intercepted 2 | . 2 . Recyclers Shooed . | . . . Parts Field Recycled . | . . . Retrieved Matter . | . . . Parts Self-Destructed 13 | . . 13 Prevented . | . . . Kills | -11 -10 -10 ------- Run | Yrd Mat Sub Combat Hostiles Destroyed 34 | . 23 11 Guns 11 | . 5 6 Cannons 23 | . 18 5 Classes Destroyed 8 | 3 4 1 Worker 4 | 1 3 . Tunneler 2 | 1 1 . Hauler 2 | . 2 . Recycler 2 | 1 1 . Watcher 1 | . 1 . Swarmer 13 | . 9 4 Grunt 14 | . 14 . Subdweller 7 | . . 7 Best Kill Streak 8 | 2 8 4 Combat Bots Only 6 | . 6 4 Max Kills in Single Turn 2 | 1 2 1 Gunslinging . | . . . Exploded . | . . . Melee . | . . . Uniques/NPCs Destroyed . | . . . Combat | -11 -10 -10 -------- Run | Yrd Mat Sub Hostile Shots Fired 148 | . 78 70 Missed 34 | . 18 16 Hits 114 | . 60 54 Projectile 114 | . 60 54 Critical Strikes 1 | . . 1 Damage Taken 1507 | . 571 936 Core 252 | . 74 178 Absorbed by Shields . | . . . Redirected to Shielding 14 | . . 14 Core Remaining (%) 100 | 100 . . Volleys Fired 136 | 6 74 56 Largest 2 | 2 2 2 Hottest 110 | 40 66 110 Shots Fired 266 | 12 146 108 Gun 123 | 12 49 62 Cannon 143 | . 97 46 Launcher . | . . . Special . | . . . Kinetic 230 | 12 146 72 Thermal 36 | . . 36 Explosive . | . . . Electromagnetic . | . . . Robot Hit Streak 19 | 6 19 14 Robot Miss Streak 5 | 1 5 3 Penetration Max . | . . . Secondary Targets . | . . . Shots Hit Robots 147 | 9 85 53 Core Hits 59 | 6 35 18 Critical Kills 3 | . . 3 Critical Parts Destroyed . | . . . Critical Strikes 4 | . 1 3 Meltdown 1 | . . 1 Destroy 2 | . . 2 Blast 1 | . 1 . Melee Attacks . | . . . Impact . | . . . Slashing . | . . . Piercing . | . . . Sneak Attacks . | . . . Combat Hostiles . | . . . Follow-up Attacks . | . . . Damage Inflicted 3161 | 80 1759 1322 Guns 1162 | 80 386 696 Cannons 1839 | . 1213 626 Explosions 150 | . 150 . Melee . | . . . Ramming 10 | . 10 . Kinetic 2375 | 80 1599 696 Thermal 626 | . . 626 Explosive 150 | . 150 . Electromagnetic . | . . . Impact . | . . . Slashing . | . . . Piercing . | . . . Highest Corruption 1 | . 1 1 Average Corruption 1 | . 1 1 Corruption Purged . | . . . Corruption Blocked . | . . . Effects 28 | . 14 14 Message Errors 7 | . 4 3 Matter Fused 9 | . 4 5 Heat Flow Errors 4 | . 1 3 Energy Discharges 2 | . 1 1 Data Loss (minor) 2 | . 1 1 Data Loss (major) 1 | . 1 . Misfires 1 | . 1 . Alerts 2 | . 1 1 Overload Shots . | . . . Overflow Damage 14 | . 4 10 Projectiles 14 | . 4 10 Explosions . | . . . Melee . | . . . Knockbacks 12 | . 12 . Impact . | . . . Kinetic 10 | . 10 . Secondary 2 | . 2 . Self-Inflicted Damage . | . . . Shots . | . . . Rammed 2 | . 2 . Targets Rammed 3 | . 3 . Kicked . | . . . Crushed 1 | . 1 . Highest Temperature 185 | . 157 185 Average Temperature 26 | . 24 35 Received Heat Transfer 384 | . 180 204 Siege Activations . | . . . Martial Activations . | . . . Shielding Activations . | . . . Robots Disrupted . | . . . Combat Hostiles . | . . . Robots Corrupted . | . . . Combat Hostiles . | . . . Parts Fried . | . . . Impact Corruptions . | . . . Robots Melted 1 | . . 1 Combat Hostiles 1 | . . 1 Parts Melted 1 | . . 1 Heat Transferred 814 | . . 814 Parts Sabotaged . | . . . Parts Stolen . | . . . Parts Stripped . | . . . Power Chain Reactions . | . . . Alert | -11 -10 -10 ------- Run | Yrd Mat Sub Maximum Alert Level 1 | . 1 . Low Security (%) 72 | 100 70 . Level 1 27 | . 29 . Level 2 . | . . . Level 3 . | . . . Level 4 . | . . . Level 5 . | . . . High Security . | . . . Max Security . | . . . Peak Influence 293 | 10 293 . Initial 3 | . 3 . Average 116 | 1 124 . Influence Increases 965 | 15 765 185 Destroy 0b10 Robot/C 540 | . 460 80 Destroy 0b10 Robot/NC 55 | 15 40 . Destroy Leader 96 | . 96 . Successful Hack 20 | . 20 . Select Force Hacks 60 | . 60 . Disable Machine 45 | . 45 . Destroy Structure 44 | . 44 . Lose Combat Pursuer 105 | . . 105 Influence Decreases 869 | 10 491 368 Entered New Map 137 | . 2 135 Time Decay 682 | 10 479 193 Lost Part 50 | . 10 40 Squads Dispatched 9 | . 9 . Investigation 7 | . 7 . Extermination . | . . . Reinforcement 2 | . 2 . Assault . | . . . Garrison . | . . . Intercept . | . . . Searches Triggered . | . . . Construction Impeded . | . . . Haulers Reinforced . | . . . Active Scanning Responses . | . . . Cargo Convoy Interrupts . | . . . Stealth | -11 -10 -10 --------- Run | Yrd Mat Sub Distress Signals . | . . . Communications Jammed . | . . . Distress Signals . | . . . Times Spotted 45 | . 29 16 Peak Tracking Total 6 | . 5 6 Tactical Retreats 3 | . . 3 Traps | -11 -10 -10 ------- Run | Yrd Mat Sub Traps Triggered 2 | . 1 1 Indirectly . | . . . Trap Hack Attempts . | . . . Triggered . | . . . Disarmed . | . . . Reprogrammed . | . . . Reused . | . . . Traps Extracted . | . . . Installed . | . . . Triggered . | . . . Machines | -11 -10 -10 ---------- Run | Yrd Mat Sub Machines Disabled 4 | . 3 1 Max in Single Turn 2 | . 2 1 Machines Repaired . | . . . Machines Dismantled . | . . . Machines Sabotaged . | . . . Overloaded Fab Kills . | . . . Hacking | -11 -10 -10 --------- Run | Yrd Mat Sub Machines Accessed 7 | . 6 1 Terminals 3 | . 3 . Fabricators . | . . . Repair Stations 1 | . 1 . Recycling Units 2 | . 2 . Scanalyzers . | . . . Garrison Access . | . . . Total Hacks 21 | . 20 1 Successful 11 | . 10 1 Failed 10 | . 10 . Catastrophic . | . . . Database Lockouts . | . . . Manual 18 | . 18 . Terminals 15 | . 15 . Fabricators . | . . . Repair Stations 3 | . 3 . Recycling Units 2 | . 2 . Scanalyzers . | . . . Garrison Access . | . . . Terminal Hacks 4 | . 3 1 Part Schematic 1 | . 1 . Robot Analysis 2 | . 2 . Proto ID Catalog 1 | . . 1 Fabricator Hacks . | . . . Repair Station Hacks 1 | . 1 . Scan Component 1 | . 1 . Recycling Unit Hacks . | . . . Scanalyzer . | . . . Garrison Access Hacks . | . . . Unauthorized Hacks 5 | . 5 . Terminals 2 | . 2 . Botnet 2 | . 2 . Fabricators . | . . . Repair Stations 1 | . 1 . Patch 1 | . 1 . Recycling Units 2 | . 2 . Tunnel 2 | . 2 . Scanalyzers . | . . . Garrison Access . | . . . Data Cores Recovered . | . . . Used . | . . . Hacking Detections 4 | . 4 . Full Trace Events 2 | . 2 . Feedback Events 1 | . 1 . Corruption 1 | . 1 . Feedback Blocked . | . . . Robot Schematics Acquired . | . . . Robots Built . | . . . Authchips . | . . . Time . | . . . Total Robot Build Rating . | . . . Part Schematics Acquired 1 | . 1 . Parts Built . | . . . Authchips . | . . . Time . | . . . Total Part Build Rating . | . . . Parts Repaired . | . . . Time . | . . . Parts Recycled . | . . . Recycled Matter . | . . . Retrieved Matter . | . . . Retrieved Components . | . . . Parts Scanalyzed . | . . . Part Schematics Acquired . | . . . Parts Damaged . | . . . Bothacking | -11 -10 -10 ------------ Run | Yrd Mat Sub Used RIF Installer . | . . . Robots Hacked . | . . . Non-combat . | . . . Combat . | . . . Robot Hacks Applied . | . . . Relay Couplers Released . | . . . Fabnet Peak Effective % . | . . . Robots Rewired . | . . . Allies Hacked . | . . . Hacks Repelled . | . . . Allies | -11 -10 -10 -------- Run | Yrd Mat Sub Total Allies . | . . . Largest Group . | . . . Highest-Rated Group . | . . . Highest-Rated Ally . | . . . Total Orders . | . . . Ally Attacks . | . . . Total Damage . | . . . Kills . | . . . Allies Corrupted . | . . . Allies Melted . | . . . Intel | -11 -10 -10 ------- Run | Yrd Mat Sub Active Infowar (turns) 2435 | 22 1713 700 Seismic 2435 | 22 1713 700 Robot Analysis Total 2 | . 2 . Derelict Logs Recovered 2 | . . 2 Drone Launches . | . . . Drone Recoveries . | . . . Exploration | -11 -10 -10 ------------- Run | Yrd Mat Sub Turns Passed 4155 | 117 1713 2325 Spaces Moved 1883 | 57 761 1065 Core 2 | 2 . . Treads 1083 | 55 761 267 Legs . | . . . Wheels 798 | . . 798 Hover . | . . . Flight . | . . . Fastest Speed 50 | 50 160 95 Average Speed 157 | 156 189 135 Slowest Speed 240 | 160 240 240 Overloaded Moves . | . . . Propulsion Burnouts . | . . . Robots Hopped . | . . . Potential Cave-ins . | . . . Cave-ins Triggered . | . . . Exploration Rate (%) 50 | 4 96 50 Regions Visited 2 Branch Regions 1 Pre-discovered Areas 4 | . 2 2 Known Exits Taken . | . . . Unknown Exits Taken 2 | 1 1 . Scrap Searched 6 | . . 6 Spaces Dug 2 | . . 2 Terrain Destroyed 51 | . 44 7 Melee . | . . . Projectile 10 | . 3 7 AOE 41 | . 41 . Terrain Rammed . | . . . Walls Destroyed . | . . . Machines Disabled . | . . . Actions | -11 -10 -10 --------- Run | Yrd Mat Sub Total 2809 | 72 890 1847 Wait 701 | . 22 679 Move 1881 | 56 760 1065 Hop . | . . . Pick Up 28 | 3 15 10 Fast Attach 12 | 7 3 2 Attach 4 | . 1 3 Detach 1 | . . 1 Swap 11 | . 5 6 Drop 27 | . 7 20 Fire 136 | 6 74 56 Melee . | . . . Ram . | . . . Kick . | . . . Crush 3 | . 3 . Escape Stasis . | . . . Rewire . | . . . Trap . | . . . Miscellaneous 5 | . . 5 Route ------- -11/Scrapyard -10/Materials (discovered 5 exits: [*Mat x3] / [*Min] / *Sub) -10/Subcaves History --------- Turn | Location | Event 20 | -11/Scrapyard | Discovered new exit (range 15) 118 | -11/Scrapyard | Entered Materials 119 | -10/Materials | Met a group of wandering Federalists 309 | -10/Materials | Build established: Mutant 310 | -10/Materials | Discovered new exit (range 7) 566 | -10/Materials | Discovered new exit (range 12) 976 | -10/Materials | Discovered new exit (range 16) 1493 | -10/Materials | Discovered new exit (range 4) 1803 | -10/Materials | Discovered new exit (range 7) 1831 | -10/Materials | Entered Subcaves 1832 | -10/Subcaves | Continued accompanying wandering Federalists (2) 1846 | -10/Subcaves | Shifting Twisted Machinery released Sub. Machine Gun 1847 | -10/Subcaves | Shifting Twisted Machinery released Sub. Shrapnel Launcher 2162 | -10/Subcaves | A swath of the cavern ceiling suddenly collapsed 2276 | -10/Subcaves | Visited 4L-MR0's lab 2298 | -10/Subcaves | Found Rainbow Chip 2492 | -10/Subcaves | Core integrity fell below 50% 2538 | -10/Subcaves | Lost 3 parts (3n) 2723 | -10/Subcaves | Learned Materials terminal intel 2756 | -10/Subcaves | Learned location of Zion (-7) 2756 | -10/Subcaves | Met a Zionite searching for "candidates" 2930 | -10/Subcaves | Build established: Subdweller-Mutant 3728 | -10/Subcaves | Core integrity fell below 20% 3980 | -10/Subcaves | A swath of the cavern ceiling suddenly collapsed 4089 | -10/Subcaves | Shifting Twisted Machinery released Mak. Light Armor Plating 4156 | -10/Subcaves | Destroyed by EW-V0M(R) with Subdweller Machine Gun Last Messages --------------- 03750_ Acquired 8 matter. 03755_ Flight Unit fries itself beyond repair. 03788_ Acquired 3 matter. 03795_ Scrap Shield Fragment affixed to Scrap Shield (+46). 03852_ Scrap Shield Fragment affixed to Scrap Shield (+44). 03856_ Scrap Shield Fragment affixed to Scrap Shield (+19). 03880_ V,4D%CMHT8YDEQOU7E2J: |,U=UT4M2Q3YU3KJP 03909_ System corrupted: Matter fused (-10). A swath of the cavern ceiling suddenly collapses. 04073_ System corrupted: Heat flow error (+186). Mak. Light Armor Plating falls loose from the Twisted Machinery. 04138_ Wheel destroyed. 04151_ Scrap Shield destroyed. 04155_ Ion Engine destroyed. 04155_ Sub. Machine Gun destroyed. Map ----- +----------------------------------------------------+ | ?????????????????????????????????## ## | | ????????????????????????????????## # | | ????????????????????????????????# #### | | ????????????????????????????????# ##??## | | ????????????????????????????????####????# | | ???????????????????????????????????????## | | ??????????????????????????????????????## | | ??????????????????????????????????????# # | | ?????????????????????????????????????# | | ????????????????????????????????####### ####### | | ???????????????????????????????## # ##??????# | | ???????????????????##"???????### #??###??# | | ???????????????????# ?###### #### #??# | | ??????????????# #### #"#!"" # # #?## | | ?????????????# % "" " # ### | | ??????????????# " " | | ??????????????????# # # ## ## | | ????????????????????????##?# ### # | | ???????????????????????????## #### # | | ??????????????????????????### #??## | | ?????????????????????????## ##???# | | ????????????????????????##"" ######????## | | ????????????????????????# "" ######?????????###### | | ????????????????????????# #??? #??????????????? | | ????????????????????????# #### #??????????????? | | ????????????????????????#@ #??????????????? | | ???????????????????????#; #??????????????? | | ???????????????????????## #??????????????? | | ????????????????????????# ##??????????????? | | ????????????????????????#;RR ##??????????????? | | ????????????????????????### #??????????????? | | ?????????????????????????## #??????????????? | | ?????????????????????????# #??????????????? | | ?????????????????????????# #??????????????? | | ??????????????????????? #?????????????? | | ???????????????????? "" ##?????????????? | | ????????????????????""""" ;#??????????????? | | ????????????????????##" ##??????????????? | | ?????????????????????#" ???????????????? | | ?????????????????????#"" #??????????????? | | ?????????????????????" " ## #??????????????? | | ?????????????????????"""" #??# ##??????????????? | | ??????????????????????""" ???? ##???????????????? | | ????????????????????????" ????###????????????????? | | ????????????????????????" ???????????????????????? | | ????????????????????????"????????????????????????? | | ?????????????????????????????????????????????????? | | ?????????????????????????????????????????????????? | | ?????????????????????????????????????????????????? | | ?????????????????????????????????????????????????? | +----------------------------------------------------+ Best States ------------- Heat Dissipation 25 Energy Generation 10 Energy Capacity 250 Matter Stores 300 Matter Capacity 300 Sight Range 16 Terrain Scan Density 10 Armor Coverage 800 Core Shielding 20 Evasion (%) 41 Recoil Reduction 2 Item Schematics ----------------- Targeting Computer | -10/Materials | Hacked Robot Schematics ------------------ None Fabricated ------------ Nothing Repaired ---------- Nothing Alien Tech Used ----------------- None Achievements -------------- None Challenges ------------ None Game ------ Seed GrenadeCatalystManipulator Manual? 0 Play Time 00:19:36 Cumulative 962.2 hours Start 2025.05.09 @ 15:40:08 End 2025.05.09 @ 15:58:57 Sessions 1 Manual Loads 0 Difficulty Rogue Special Mode None Game No. 586 Rogue 579 Adventurer 0 Explorer 7 Win Type - Total 65 Types 23/6/24/2/0/1/6/1/2/0 Lore% 88 Gallery% 87 Achievement% 85 Wizard Run 0 Options --------- Layout 1 ASCII 0 Keyboard 0 Movement Mouse Keybinds 0 Fullscreen 2 Font 24/Smallcaps Map View 50x35 Zoom Use 0% Tactical HUD 1 Map Filters NONE Filters NONE Steam 1 RUN: 5183c25f-5e31-4d1d-9907-a310e9b4880d